Cogmind - Beta 10.2 @@@ ROGUE MODE // 2021.10.15 @ 23:30:30 Player: Howard Result: Destroyed by G-50 Soldier with Heavy Laser Performance ------------- Evolutions (3) 1500 Regions Visited (10) 2000 Robots Destroyed (84) 420 Value Destroyed (2696) 2696 Prototype IDs (3) 60 Alien Tech Used (0) 0 Bonus (352) 352 TOTAL SCORE: 7028 Bonus ------- High Alert Combat Kills 352 Cogmind --------- Core Integrity 0/700 Matter 107/300 Energy 27/100 System Corruption 31% Temperature Cool (192) Movement Core (100) Ox1 Location -7/Factory Parts ------- > --- POWER (2) -------- (None) > --- PROPULSION (4) --- (None) > --- UTILITY (5) ------ Advanced Signal Interpreter System Shield > --- WEAPON (2) ------- Great Axe > --- INVENTORY (4) ---- Medium Storage Unit Powered Armor Improved EM Pulse Cannon Impact Mace Peak State ------------ > --- POWER ------------ Light Nuclear Core Light Angular Momentum Engine > --- PROPULSION ------- Light Treads Armored Treads Medium Treads Wheel > --- UTILITY ---------- Large Storage Unit Large Storage Unit Enhanced Optical Array System Shield System Shield > --- WEAPON ----------- Katana Great Axe > --- INVENTORY -------- Medium Storage Unit Long-range Sensor Array Advanced Signal Interpreter Powered Armor Powered Armor Powered Armor Improved Shield Generator Hacking Suite Hacking Suite Hacking Suite System Shield System Shield Improved EM Pulse Cannon Shock Bomb Launcher Improved Grenade Launcher Impact Mace [Rating: 41] Favorites ----------- Power Ion Engine Engine Ion Engine Power Core Light Nuclear Core Propulsion Light Treads Treads Light Treads Leg Aluminum Leg Wheel Compact Wheel Hover Unit Aerolev Unit Flight Unit Cesium-ion Thruster Utility Large Storage Unit Device Remote Force Field Storage Large Storage Unit Processor Enhanced Optical Array Hackware System Shield Protection Light Armor Plating Weapon Katana Energy Gun Small Laser Energy Cannon Light EM Pulse Cannon Ballistic Gun Light Assault Rifle Launcher Improved Grenade Launcher Slashing Weapon Katana Build | -11 -10 -10 -9 -9 -9 -8 -8 -7 -7 -7 ------- Run | Scr Mat Min Mat Min Exi Min Mat Fac Was Fac Slots Evolved 6 | . . . 2 . . . 2 2 . . Power 1 | . . . . . . . 1 . . . Propulsion 2 | . . . . . . . 1 1 . . Utility 3 | . . . 2 . . . . 1 . . Weapon . | . . . . . . . . . . . Parts Attached 94 | 6 2 . 7 3 . 1 22 20 1 32 Power 13 | 1 . . . . . . 5 1 . 6 Engine 12 | 1 . . . . . . 5 1 . 5 Core 1 | . . . . . . . . . . 1 Reactor . | . . . . . . . . . . . Propulsion 27 | 2 . . 3 . . 1 5 8 . 8 Treads 10 | 1 . . 1 . . . 2 2 . 4 Leg 2 | . . . . . . . . . . 2 Wheel 10 | 1 . . 2 . . 1 2 2 . 2 Hover 1 | . . . . . . . 1 . . . Flight 4 | . . . . . . . . 4 . . Utility 17 | 1 2 . 1 1 . . 2 7 . 3 Device 1 | . . . . . . . . . . 1 Storage 9 | 1 2 . . . . . . 5 . 1 Processor 4 | . . . . 1 . . 2 . . 1 Hackware 2 | . . . . . . . . 2 . . Protection 1 | . . . 1 . . . . . . . Artifact . | . . . . . . . . . . . Weapon 37 | 2 . . 3 2 . . 10 4 1 15 Energy Gun 2 | 2 . . . . . . . . . . Energy Cannon 7 | . . . 2 1 . . . 1 . 3 Ballistic Gun 1 | . . . 1 . . . . . . . Ballistic Cannon . | . . . . . . . . . . . Launcher 13 | . . . . 1 . . 4 1 1 6 Special Weapon . | . . . . . . . . . . . Impact Weapon . | . . . . . . . . . . . Slashing Weapon 14 | . . . . . . . 6 2 . 6 Piercing Weapon . | . . . . . . . . . . . Special Melee Weapon . | . . . . . . . . . . . Unidentified Prototypes 2 | . . . . . . . 2 . . . Parts Lost 29 | . . . 1 . . 2 8 . . 18 Power 8 | . . . . . . . 3 . . 5 Propulsion 13 | . . . . . . 1 3 . . 9 Utility 2 | . . . . . . . 1 . . 1 Weapon 6 | . . . 1 . . 1 1 . . 3 Highest Loss Streak 11 | . . . 1 . . 2 6 . . 11 Average Slot Usage (%) 91 | . 91 100 86 95 100 97 83 93 100 88 Engine 10 | . 14 14 11 11 11 11 10 13 15 6 Treads 12 | . 14 14 11 11 11 11 11 11 15 11 Leg 1 | . . . . . . . . . . 4 Wheel 10 | . 14 14 10 11 11 11 10 14 15 7 Storage 18 | . 20 28 22 22 22 22 18 14 15 14 Processor 7 | . . . . 6 11 11 11 9 7 7 Hackware 7 | . . . . . . . . 11 15 14 Protection 3 | . . . 9 11 11 11 4 . . . Energy Gun 2 | . 28 28 11 . . . . . . . Energy Cannon 4 | . . . 1 21 22 19 . . . . Slashing Weapon 9 | . . . . . . . 16 14 7 14 Naked Turns . | . . . . . . . . . . . Heaviest Build 56 | 12 40 40 48 48 48 48 56 52 56 56 Greatest Support 40 | 16 16 16 40 16 16 16 26 26 26 26 Greatest Overweight (x) 12 | . 2 2 2 2 2 4 12 1 2 5 Average Overweight (x) 2 | . . 2 1 2 2 2 2 . 2 3 Largest Inventory Capacity 16 | 6 16 16 16 16 16 16 16 16 16 16 Average Capacity 15 | 5 10 16 16 16 16 16 16 15 16 15 Most Carried 16 | 5 7 7 16 16 16 16 16 16 16 16 Average Carried 14 | 2 5 7 11 16 16 15 15 12 15 15 Final Capacity 16 | 6 16 16 16 16 16 16 16 16 16 4 Final Carried 16 | 5 7 7 16 16 16 16 16 16 16 4 Class Distribution -------------------- 50% | Mutant 49% | Hacker-Mutant Dominant Class ---------------- Mutant | -10/Materials Mutant | -10/Mines Mutant | -9/Materials Mutant | -9/Mines Mutant | -9/Exiles Mutant | -8/Mines Mutant | -8/Materials Hacker-Mutant | -7/Factory Hacker-Mutant | -7/Waste Hacker-Mutant | -7/Factory Resources | -11 -10 -10 -9 -9 -9 -8 -8 -7 -7 -7 ----------- Run | Scr Mat Min Mat Min Exi Min Mat Fac Was Fac Matter Collected 1995 | 159 . 121 65 59 . 56 325 52 655 503 Remotely . | . . . . . . . . . . . Salvage Created 3764 | 53 57 9 129 187 . 176 751 95 1078 1229 Parts 139 | 1 2 . 9 14 . 5 42 4 . 62 Haulers Intercepted 4 | . 1 . . . . . 2 . . 1 Recyclers Shooed 2 | . . . 1 . . 1 . . . . Parts Field Recycled . | . . . . . . . . . . . Retrieved Matter . | . . . . . . . . . . . Parts Self-Destructed . | . . . . . . . . . . . Prevented . | . . . . . . . . . . . Kills | -11 -10 -10 -9 -9 -9 -8 -8 -7 -7 -7 ------- Run | Scr Mat Min Mat Min Exi Min Mat Fac Was Fac Combat Hostiles Destroyed 62 | . . 1 3 6 . 3 13 4 6 26 Melee 24 | . . . . . . . 9 . . 15 Guns 4 | . . 1 3 . . . . . . . Cannons 4 | . . . . 2 . 2 . . . . AOE 27 | . . . . 4 . . 4 3 6 10 Classes Destroyed 17 | 1 1 1 2 4 . . 3 1 1 3 Worker 5 | . . . . 1 . . 2 . . 2 Builder 5 | . . . . . . . 3 . . 2 Tunneler 2 | . . . . 1 . . . . . 1 Hauler 4 | . 1 . . . . . 2 . . 1 Recycler 4 | 1 . . . . . . 2 . . 1 Operator 1 | . . . . . . . 1 . . . Watcher 2 | . . . . . . . 1 1 . . Swarmer 19 | . . . . 3 . . 5 3 . 8 Grunt 21 | . . . 2 2 . 3 3 . . 11 Brawler 1 | . . . . 1 . . . . . . Duelist 1 | . . . . . . . . . . 1 Protector 1 | . . . . . . . . . . 1 Sentry 7 | . . . 1 . . . 5 . . 1 Hunter 2 | . . . . . . . . 1 . 1 Programmer 3 | . . . . . . . . . . 3 Compactor 6 | . . . . . . . . . 6 . Assembled 1 | . . 1 . . . . . . . . Best Kill Streak 5 | 1 1 1 2 3 . 2 5 3 3 5 Combat Bots Only 5 | . . 1 2 3 . 2 3 3 3 5 Max Kills in Single Turn 3 | 1 1 1 1 1 . 1 2 3 1 2 Gunslinging . | . . . . . . . . . . . Exploded 3 | . . . . 1 . . 1 3 1 2 Melee 2 | . . . . . . . 1 . . 2 Uniques/NPCs Destroyed . | . . . . . . . . . . . Combat | -11 -10 -10 -9 -9 -9 -8 -8 -7 -7 -7 -------- Run | Scr Mat Min Mat Min Exi Min Mat Fac Was Fac Damage Taken 4156 | . . 81 132 121 . 218 733 101 14 2756 Core 859 | . . 45 23 18 . . 68 15 . 690 Absorbed by Shields 9 | . . . . . . . . . . 9 Core Remaining (%) 89 | 100 . 82 . . . 89 87 . . . Volleys Fired 154 | 3 11 2 25 14 . 11 15 5 37 31 Largest 2 | 1 2 2 2 2 . 2 1 1 1 1 Hottest 112 | 50 90 90 60 112 . 112 56 69 36 69 Shots Fired 204 | 3 22 4 50 23 . 16 15 5 36 30 Gun 79 | 3 22 4 50 . . . . . . . Cannon 45 | . . . . 18 . 16 3 4 . 4 Launcher 80 | . . . . 5 . . 12 1 36 26 Special . | . . . . . . . . . . . Kinetic 25 | . . . 25 . . . . . . . Thermal 54 | 3 22 4 25 . . . . . . . Explosive 65 | . . . . 5 . . 12 1 36 11 Electromagnetic 60 | . . . . 18 . 16 3 4 . 19 Robot Hit Streak 13 | 3 9 1 9 13 . 10 9 3 7 6 Robot Miss Streak 4 | . 2 2 4 3 . 1 2 1 1 2 Penetration Max . | . . . . . . . . . . . Secondary Targets . | . . . . . . . . . . . Shots Hit Robots 237 | 3 16 1 37 15 . 14 37 3 26 85 Core Hits 134 | 2 3 1 9 8 . 6 30 4 20 51 Critical Hits 3 | . . . . . . . 1 . . 2 Critical Kills . | . . . . . . . . . . . Critical Parts Destroyed 3 | . . . . . . . 1 . . 2 Melee Attacks 136 | . . . . . . . 52 . . 84 Impact . | . . . . . . . . . . . Slashing 136 | . . . . . . . 52 . . 84 Piercing . | . . . . . . . . . . . Sneak Attacks 15 | . . . . . . . 6 . . 9 Combat Hostiles . | . . . . . . . . . . . Follow-up Attacks 20 | . . . . . . . 10 . . 10 Damage Inflicted 12401 | 38 179 13 334 708 . 318 2009 463 4478 3861 Guns 564 | 38 179 13 334 . . . . . . . Cannons 850 | . . . . 317 . 318 56 60 . 99 Explosions 7131 | . . . . 391 . . 573 403 4478 1286 Melee 3853 | . . . . . . . 1377 . . 2476 Ramming 3 | . . . . . . . 3 . . . Kinetic 125 | . . . 125 . . . . . . . Thermal 805 | 38 179 13 209 115 . . . 199 . 52 Explosive 6128 | . . . . 276 . . 573 168 4478 633 Electromagnetic 1487 | . . . . 317 . 318 56 96 . 700 Impact . | . . . . . . . . . . . Slashing 3853 | . . . . . . . 1377 . . 2476 Piercing . | . . . . . . . . . . . Highest Corruption 31 | . . . . . . . . . 21 31 Average Corruption 22 | . . . . . . . . . 12 24 Corruption Purged . | . . . . . . . . . . . Effects 165 | . . . . . . . . . 25 140 Message Errors 23 | . . . . . . . . . 7 16 Matter Fused 29 | . . . . . . . . . 3 26 Heat Flow Errors 13 | . . . . . . . . . 1 12 Energy Discharges 10 | . . . . . . . . . 1 9 Parts Rejected 2 | . . . . . . . . . . 2 Data Loss (minor) 10 | . . . . . . . . . . 10 Data Loss (major) 7 | . . . . . . . . . 1 6 Alerts 3 | . . . . . . . . . . 3 Misdirections 36 | . . . . . . . . . 4 32 Targeting Errors 30 | . . . . . . . . . 7 23 Weapon Failures 2 | . . . . . . . . . 1 1 Overload Shots . | . . . . . . . . . . . Overflow Damage 714 | . . . . 63 . . 268 . . 383 Projectiles 20 | . . . . 20 . . . . . . Explosions 111 | . . . . 43 . . 25 . . 43 Melee 583 | . . . . . . . 243 . . 340 Knockbacks . | . . . . . . . . . . . Impact . | . . . . . . . . . . . Kinetic . | . . . . . . . . . . . Secondary . | . . . . . . . . . . . Self-Inflicted Damage 234 | . . . . 13 . . 8 55 14 144 Shots 11 | . . . . 1 . . 1 1 2 6 Rammed . | . . . . . . . . . . . Targets Rammed 1 | . . . . . . . 1 . . . Kicked . | . . . . . . . . . . . Crushed 1 | . . . . . . . 1 . . . Highest Temperature 320 | 30 120 30 58 216 . 222 30 108 132 320 Average Temperature 66 | 16 58 17 22 73 . 122 14 61 77 78 Received Heat Transfer 1104 | . . 20 60 21 . 126 117 . . 760 Effects 2 | . . . . . . . . . . 2 Interference 2 | . . . . . . . . . . 2 Siege Activations . | . . . . . . . . . . . Robots Corrupted 3 | . . . . . . 1 . 1 . 1 Combat Hostiles 3 | . . . . . . 1 . 1 . 1 Parts Fried 11 | . . . . . . 3 1 . . 7 Impact Corruptions . | . . . . . . . . . . . Robots Melted . | . . . . . . . . . . . Combat Hostiles . | . . . . . . . . . . . Parts Melted . | . . . . . . . . . . . Heat Transferred 1382 | 111 459 37 475 50 . . . 150 . 100 Parts Sabotaged . | . . . . . . . . . . . Parts Stolen . | . . . . . . . . . . . Parts Stripped . | . . . . . . . . . . . Power Chain Reactions 3 | . . . . 2 . . . . . 1 Missiles Intercepted . | . . . . . . . . . . . Alert | -11 -10 -10 -9 -9 -9 -8 -8 -7 -7 -7 ------- Run | Scr Mat Min Mat Min Exi Min Mat Fac Was Fac Peak Influence 871 | 5 10 18 163 223 . 50 491 750 404 871 Initial 282 | . 3 3 6 63 . . 19 223 262 282 Average 311 | 2 5 6 95 135 . 14 244 415 348 487 Maximum Alert Level 3 | . . . . 1 . . 2 3 2 3 Low Security (%) 32 | 100 100 100 100 68 . 100 37 . . . Level 1 31 | . . . . 31 . . 51 67 76 24 Level 2 31 | . . . . . . . 10 . 23 69 Level 3 4 | . . . . . . . . 32 . 5 Level 4 . | . . . . . . . . . . . Level 5 . | . . . . . . . . . . . High Security . | . . . . . . . . . . . Max Security . | . . . . . . . . . . . Squads Dispatched 13 | . 1 . . . . . 1 3 . 8 Investigation 2 | . . . . . . . . . . 2 Extermination 4 | . . . . . . . . 1 . 3 Reinforcement 5 | . 1 . . . . . 1 1 . 2 Assault 2 | . . . . . . . . 1 . 1 Garrison . | . . . . . . . . . . . Intercept . | . . . . . . . . . . . Construction Impeded 1 | . . . . . . . . . . 1 Haulers Reinforced . | . . . . . . . . . . . Stealth | -11 -10 -10 -9 -9 -9 -8 -8 -7 -7 -7 --------- Run | Scr Mat Min Mat Min Exi Min Mat Fac Was Fac Distress Signals 6 | . . . 1 . . . 3 . . 2 Communications Jammed . | . . . . . . . . . . . Distress Signals . | . . . . . . . . . . . Times Spotted 116 | . 1 5 9 7 . 3 26 7 6 52 Peak Tracking Total 9 | . 1 4 6 3 . 3 9 3 3 8 Tactical Retreats 22 | . . . 2 1 . . 4 . . 15 Traps | -11 -10 -10 -9 -9 -9 -8 -8 -7 -7 -7 ------- Run | Scr Mat Min Mat Min Exi Min Mat Fac Was Fac Traps Triggered 6 | . . . . . . . . 2 . 4 Indirectly 1 | . . . . . . . . 1 . . Trap Hack Attempts . | . . . . . . . . . . . Triggered . | . . . . . . . . . . . Disarmed . | . . . . . . . . . . . Reprogrammed . | . . . . . . . . . . . Reused . | . . . . . . . . . . . Traps Extracted . | . . . . . . . . . . . Installed . | . . . . . . . . . . . Triggered . | . . . . . . . . . . . Machines | -11 -10 -10 -9 -9 -9 -8 -8 -7 -7 -7 ---------- Run | Scr Mat Min Mat Min Exi Min Mat Fac Was Fac Machines Disabled 17 | . . . . . . . 4 11 . 2 Max in Single Turn 11 | . . . . . . . 1 11 . 1 Garrison Access 1 | . . . . . . . . 1 . . Machines Sabotaged . | . . . . . . . . . . . Garrisons Compromised . | . . . . . . . . . . . Overloaded Fab Kills . | . . . . . . . . . . . Fab Network Shutdowns . | . . . . . . . . . . . Hacking | -11 -10 -10 -9 -9 -9 -8 -8 -7 -7 -7 --------- Run | Scr Mat Min Mat Min Exi Min Mat Fac Was Fac Machines Accessed 17 | . 2 . 1 . . . 3 2 . 9 Terminals 10 | . 2 . 1 . . . 3 . . 4 Fabricators 2 | . . . . . . . . 1 . 1 Repair Stations 1 | . . . . . . . . . . 1 Recycling Units . | . . . . . . . . . . . Scanalyzers 3 | . . . . . . . . 1 . 2 Garrison Access 1 | . . . . . . . . . . 1 Total Hacks 65 | . 4 . 3 . . . 7 8 . 43 Successful 30 | . 1 . 1 . . . 4 7 . 17 Failed 35 | . 3 . 2 . . . 3 1 . 26 Catastrophic 11 | . 1 . . . . . . . . 10 Database Lockouts . | . . . . . . . . . . . Manual 31 | . 4 . . . . . 7 1 . 19 Terminals 33 | . 4 . 3 . . . 7 . . 19 Fabricators 13 | . . . . . . . . 5 . 8 Repair Stations 4 | . . . . . . . . . . 4 Recycling Units . | . . . . . . . . . . . Scanalyzers 13 | . . . . . . . . 3 . 10 Garrison Access 2 | . . . . . . . . . . 2 Terminal Hacks 6 | . . . 1 . . . 3 . . 2 Level Access Points 1 | . . . . . . . 1 . . . Branch Access Points 1 | . . . 1 . . . . . . . Terminal Index 2 | . . . . . . . 1 . . 1 Zone Layout 2 | . . . . . . . 1 . . 1 Fabricator Hacks 7 | . . . . . . . . 4 . 3 Load Schematic 2 | . . . . . . . . 1 . 1 Build 5 | . . . . . . . . 3 . 2 Repair Station Hacks 1 | . . . . . . . . . . 1 Scan Component 1 | . . . . . . . . . . 1 Recycling Unit Hacks . | . . . . . . . . . . . Scanalyzer 9 | . . . . . . . . 2 . 7 Insert Component 5 | . . . . . . . . 1 . 4 Analyze 4 | . . . . . . . . 1 . 3 Garrison Access Hacks . | . . . . . . . . . . . Unauthorized Hacks 7 | . 1 . . . . . 1 1 . 4 Terminals 5 | . 1 . . . . . 1 . . 3 Track 1 | . . . . . . . . . . 1 Botnet 4 | . 1 . . . . . 1 . . 2 Fabricators 2 | . . . . . . . . 1 . 1 Prioritize 2 | . . . . . . . . 1 . 1 Repair Stations . | . . . . . . . . . . . Recycling Units . | . . . . . . . . . . . Scanalyzers . | . . . . . . . . . . . Garrison Access . | . . . . . . . . . . . Data Cores Recovered . | . . . . . . . . . . . Used . | . . . . . . . . . . . Hacking Detections 15 | . 2 . 1 . . . 2 1 . 9 Full Trace Events . | . . . . . . . . . . . Feedback Events . | . . . . . . . . . . . Feedback Blocked . | . . . . . . . . . . . Robot Schematics Acquired . | . . . . . . . . . . . Robots Built . | . . . . . . . . . . . Matter . | . . . . . . . . . . . Time . | . . . . . . . . . . . Total Robot Build Rating . | . . . . . . . . . . . Part Schematics Acquired 4 | . . . . . . . . 1 . 3 Parts Built 7 | . . . . . . . . 3 . 4 Matter 774 | . . . . . . . . 438 . 336 Time 192 | . . . . . . . . 108 . 84 Total Part Build Rating 25 | . . . . . . . . 9 . 16 Parts Repaired . | . . . . . . . . . . . Time . | . . . . . . . . . . . Parts Recycled . | . . . . . . . . . . . Recycled Matter . | . . . . . . . . . . . Retrieved Matter . | . . . . . . . . . . . Retrieved Components . | . . . . . . . . . . . Parts Scanalyzed 4 | . . . . . . . . 1 . 3 Part Schematics Acquired 4 | . . . . . . . . 1 . 3 Parts Damaged . | . . . . . . . . . . . Bothacking | -11 -10 -10 -9 -9 -9 -8 -8 -7 -7 -7 ------------ Run | Scr Mat Min Mat Min Exi Min Mat Fac Was Fac Used RIF Installer . | . . . . . . . . . . . Robots Hacked . | . . . . . . . . . . . Non-combat . | . . . . . . . . . . . Combat . | . . . . . . . . . . . Robot Hacks Applied . | . . . . . . . . . . . Relay Couplers Released 2 | . . . . . . . . 2 . . Machine Destruction 2 | . . . . . . . . 2 . . Robots Rewired . | . . . . . . . . . . . Allies Hacked . | . . . . . . . . . . . Hacks Repelled . | . . . . . . . . . . . Allies | -11 -10 -10 -9 -9 -9 -8 -8 -7 -7 -7 -------- Run | Scr Mat Min Mat Min Exi Min Mat Fac Was Fac Total Allies . | . . . . . . . . . . . Largest Group . | . . . . . . . . . . . Highest-Rated Group . | . . . . . . . . . . . Highest-Rated Ally . | . . . . . . . . . . . Total Orders . | . . . . . . . . . . . Ally Attacks . | . . . . . . . . . . . Total Damage . | . . . . . . . . . . . Kills . | . . . . . . . . . . . Allies Corrupted . | . . . . . . . . . . . Allies Melted . | . . . . . . . . . . . Intel | -11 -10 -10 -9 -9 -9 -8 -8 -7 -7 -7 ------- Run | Scr Mat Min Mat Min Exi Min Mat Fac Was Fac Robot Analysis Total . | . . . . . . . . . . . Derelict Logs Recovered . | . . . . . . . . . . . Drone Launches . | . . . . . . . . . . . Drone Recoveries . | . . . . . . . . . . . Exploration | -11 -10 -10 -9 -9 -9 -8 -8 -7 -7 -7 ------------- Run | Scr Mat Min Mat Min Exi Min Mat Fac Was Fac Turns Passed 4927 | 58 151 221 334 466 392 145 658 356 303 1843 Spaces Moved 3199 | 39 105 156 193 346 327 88 343 226 206 1170 Core 10 | 1 . . . . . . 6 . . 3 Treads 33 | . . . 5 . . . 12 16 . . Legs 65 | . . . . . . . . . . 65 Wheels 3085 | 38 105 156 188 346 327 88 324 205 206 1102 Hover 1 | . . . . . . . 1 . . . Flight 5 | . . . . . . . . 5 . . Fastest Speed 31 | 50 100 120 120 120 120 120 100 31 110 50 Average Speed 118 | 98 108 120 121 120 120 120 124 105 110 121 Slowest Speed 650 | 100 120 120 180 120 120 120 650 180 110 210 Overloaded Moves . | . . . . . . . . . . . Propulsion Burnouts . | . . . . . . . . . . . Robots Hopped . | . . . . . . . . . . . Cave-ins Triggered . | . . . . . . . . . . . Exploration Rate (%) 41 | 4 31 43 22 79 65 29 42 10 97 31 Regions Visited 10 Branch Regions 4 Pre-discovered Areas . | . . . . . . . . . . . Known Exits Taken 2 | . . . 1 . . . 1 . . . Unknown Exits Taken 6 | 1 1 1 . 1 1 1 . . . . Scrap Searched 1 | . . . . 1 . . . . . . Spaces Dug 2 | . . . . . . . . . . 2 Terrain Destroyed 436 | . . . . 45 . . 86 45 180 80 Melee 2 | . . . . . . . . . . 2 Projectile . | . . . . . . . . . . . AOE 434 | . . . . 45 . . 86 45 180 78 Terrain Rammed . | . . . . . . . . . . . Walls Destroyed . | . . . . . . . . . . . Machines Disabled . | . . . . . . . . . . . Actions | -11 -10 -10 -9 -9 -9 -8 -8 -7 -7 -7 --------- Run | Scr Mat Min Mat Min Exi Min Mat Fac Was Fac Total 3954 | 52 120 186 246 372 326 111 494 343 245 1459 Wait 283 | . . 29 6 10 . 11 49 57 . 121 Move 3190 | 38 104 155 192 345 326 87 342 226 205 1170 Hop . | . . . . . . . . . . . Pick Up 65 | 5 2 . 12 . . 1 11 16 1 17 Fast Attach 43 | 6 1 . 3 1 . . 11 8 . 13 Attach 19 | . . . 1 . . 1 5 6 . 6 Detach 13 | . . . . . . . 4 7 . 2 Swap 32 | . 1 . 3 2 . . 6 6 1 13 Drop 46 | . 1 . 4 . . . 10 12 1 18 Fire 154 | 3 11 2 25 14 . 11 15 5 37 31 Melee 108 | . . . . . . . 40 . . 68 Ram . | . . . . . . . . . . . Kick . | . . . . . . . . . . . Crush 1 | . . . . . . . 1 . . . Escape Stasis . | . . . . . . . . . . . Rewire . | . . . . . . . . . . . Trap . | . . . . . . . . . . . Miscellaneous . | . . . . . . . . . . . Route ------- -11/Scrapyard -10/Materials -10/Mines (discovered 2 exits: *Mat x2) -9/Materials (discovered 2 exits: *Min x2) -9/Mines (discovered 4 exits: *Mat x2 / [*Exi] / [*Zio]) -9/Exiles (discovered 2 exits: [*Min x2]) -8/Mines -8/Materials (discovered 3 exits: *Fac x3) -7/Factory -7/Waste -7/Factory (discovered 1 exit: *Fac) History --------- Turn | Location | Event 17 | -11/Scrapyard | Discovered new exit (range 15) 59 | -11/Scrapyard | Entered Materials 197 | -10/Materials | Discovered new exit (range 12) 210 | -10/Materials | Entered Mines 211 | -10/Mines | Assembled infested the area 304 | -10/Mines | Build established: Mutant 382 | -10/Mines | Discovered new exit (range 14) 415 | -10/Mines | Discovered new exit (range 11) 431 | -10/Mines | Entered Materials 431 | -9/Materials | Evolved 2 slots: Utility x2 719 | -9/Materials | Identified exit to Mines 765 | -9/Materials | Entered Mines 790 | -9/Mines | A Derelict revealed a hidden shortcut to a safe place 797 | -9/Mines | Discovered new exit (range 14) 969 | -9/Mines | Discovered new exit (range 16) 1225 | -9/Mines | Deemed a non-threat by the Exiles lab entrance 1226 | -9/Mines | Discovered new exit (range 5) 1231 | -9/Mines | Entered Exiles 1261 | -9/Exiles | Met 8R-AWN 1284 | -9/Exiles | Discovered new exit (range 14) 1344 | -9/Exiles | Met EX-HEX 1440 | -9/Exiles | Met EX-DEC 1486 | -9/Exiles | Visited The Gauntlet 1581 | -9/Exiles | Discovered new exit (range 12) 1623 | -9/Exiles | Entered Mines 1698 | -8/Mines | Discovered new exit (range 10) 1768 | -8/Mines | Entered Materials 1768 | -8/Materials | Evolved 2 slots: Power x1, Propulsion x1 1924 | -8/Materials | Identified exit to Factory 2117 | -8/Materials | Lost 6 parts (1p3n1u1w) 2426 | -8/Materials | Entered Factory 2426 | -7/Factory | Evolved 2 slots: Propulsion x1, Utility x1 2680 | -7/Factory | Fabricated Hacking Suite? 2741 | -7/Factory | Fabricated Hacking Suite (x1) 2779 | -7/Factory | Fabricated Hacking Suite (x1) 2782 | -7/Factory | Sucked down chute 2782 | -7/Factory | Entered Waste 2791 | -7/Waste | Found Powered Armor 2796 | -7/Waste | Spotted C-40 Crusher 2797 | -7/Waste | EMP discharged 2804 | -7/Waste | Destroyed C-40 Crusher 2805 | -7/Waste | Build established: Hacker-Mutant 2807 | -7/Waste | Spotted C-40 Crusher 2809 | -7/Waste | Spotted C-40 Crusher 2838 | -7/Waste | Destroyed C-40 Crusher 2877 | -7/Waste | Spotted C-40 Crusher 2877 | -7/Waste | Spotted C-40 Crusher 2897 | -7/Waste | EMP discharged 2897 | -7/Waste | System corruption reached 10% 2943 | -7/Waste | Destroyed C-40 Crusher 2948 | -7/Waste | Spotted C-40 Crusher 2997 | -7/Waste | EMP discharged 3012 | -7/Waste | Destroyed C-40 Crusher 3025 | -7/Waste | Destroyed C-40 Crusher 3036 | -7/Waste | Destroyed C-40 Crusher 3062 | -7/Waste | Discovered new exit (range 21) 3085 | -7/Waste | Entered Factory 3638 | -7/Factory | Fabricated Powered Armor? 3803 | -7/Factory | Fabricated Powered Armor (x2) 4622 | -7/Factory | Discovered new exit (range 22) 4656 | -7/Factory | Identified exit to Factory 4685 | -7/Factory | First assault squad dispatched 4860 | -7/Factory | System corruption reached 30% 4862 | -7/Factory | Core integrity fell below 50% 4921 | -7/Factory | Core integrity fell below 20% 4928 | -7/Factory | Destroyed by G-50 Soldier with Heavy Laser Last Messages --------------- 04911_ System corrupted: Remote Force Field rejected. 04913_ Lgt. Angular Momentum Engine destroyed. 04914_ The unstable cave ceiling collapses. 04914_ Dropped Lrg. Storage Unit. 04914_ U-05 Engineer lays Concrete. 04915_ Dropped Lrg. Storage Unit. 04915_ Penetrated by Slug. 04916_ The unstable cave ceiling collapses. 04916_ U-05 Engineer lays Concrete. 04918_ The unstable cave ceiling collapses. 04919_ U-05 Engineer lays Concrete. 04920_ Penetrated by Slug. 04920_ U-05 Engineer lays Concrete. 04920_ Acquired Great Axe. 04921_ U-05 Engineer builds a Wall. 04923_ H-55 Commando destroyed. 04925_ U-05 Engineer builds a Door. 04926_ Katana destroyed. 04927_ System corrupted: Heat flow error (+206). 04927_ R-06 Scavenger collects Hacking Suite. Map ----- +----------------------------------------------------+ | ?????????????????????????????? | | ?????????????????????????????? | | ?????????????????????????????? | | ????????????????????????? ???? | | ????????????????????????? ???? | | ????????????????????????? ???? | | ?????????????????# ?????? #??? | | ???????????????### ###### #??? | | ???????????????# # # ##?? | | ???????????????# #?? | | ???????????????# ##? | | ???????????????# #? | | ???????????????? |%# #? | | ????????????????# #? | | ????????????????? # #? | | ????????????????? #? | | ????????????????? # # #? | | ????????????????? # #? | | ????????????????# ## /#?? | | ########????????# # # #?? | | # ????????# ### ## #?? | | # ?????????# ### ##g## | | # ?????????# ## ## # # | | # ?????????# ## r !! #? | | # ?????????# # !!!## | | # ??????????# @!!!# | | # ??????????# # %g # | | # ????????### # # | | ####+########## ! # | | # | | T # " # | | "" u+! "" # | | "" # | | # """" # | | ############### # """" # | | ??????????????####+#### """" # | | " ??????????????? ??# # | | " #?????????????? ??# ? | | " #????????????? ?######?? | | ???????????????? ????????? | | ??????????????? ???????? | | ???????????????""" ???????? | | ?????????????? """ #??????? | | ?????????????? """ #??????? | | ?????????????# ?? #??????? | | ?????????????#???######??????? | | ?????????????????????????????? | | ?????????????????????????????? | | ?????????????????????????????? | | ?????????????????????????????? | +----------------------------------------------------+ Best States ------------- Heat Dissipation 34 Energy Generation 27 Energy Capacity 480 Matter Stores 300 Matter Capacity 300 Sight Range 22 Terrain Scan Density 10 Armor Coverage 150 Evasion (%) 40 Armor Integrity Analysis 33 Recoil Reduction 2 Defensive Hacking 20 Item Schematics ----------------- Hacking Suite | -7/Factory | Scanalyzed Powered Armor | -7/Factory | Scanalyzed System Shield | -7/Factory | Scanalyzed Lrg. Storage Unit | -7/Factory | Scanalyzed Robot Schematics ------------------ None Fabricated ------------ Hacking Suite | x1 | -7/Factory Hacking Suite | x1 | -7/Factory Hacking Suite | x1 | -7/Factory Powered Armor | x2 | -7/Factory Powered Armor | x2 | -7/Factory Alien Tech Used ----------------- None Achievements -------------- None Challenges ------------ None Game ------ Seed AluminumMetafieldPrototype Manual? 0 Play Time 00:46:03 Cumulative 129.3 hours Start 2021.10.15 @ 22:46:06 End 2021.10.15 @ 23:30:30 Sessions 1 Manual Loads 0 Difficulty Rogue Special Mode None Game No. 95 Rogue 93 Adventurer 2 Explorer 0 Win Type - Total 6 Types 3/0/1/2/0/0/0/0/0 Lore% 74 Gallery% 79 Achievement% 66 Wizard Run 0 Options --------- ASCII 0 Keyboard 1 Movement Numpad Keybinds 0 Fullscreen 1 Font 12/Smallcaps Map View 83x54 Tactical HUD 1 Map Filters NONE Filters NONE Steam 1 RUN: 765dab9a-1904-46b9-97e6-a0208f0e8377